[Event "Titled Tuesday Blitz February 28 Early 2023"]
[White "Kalajzic, Ivan"]
[Black "Korpics, Zsolt"]
[WhiteFideId "14506378"]
[BlackFideId "705241"]
[WhiteElo "2203"]
[BlackElo "2331"]
[Result "0-1"]
[Round "06"]
[TimeControl "180+2"]
[Date "2023.02.28"]
[WhiteClock "0:00:10"]
[BlackClock "0:01:41"]

1. d4 {[%clk 0:02:59]}  Nf6 {[%clk 0:02:59]} 2. Nc3 {[%clk 0:02:58]}  d5 {[%clk 0:02:59]} 3. Bg5 {[%clk 0:02:58]}  g6 {[%clk 0:02:45]} 4. Qd2 {[%clk 0:02:57]}  Bg7 {[%clk 0:02:45]} 5. Bh6 {[%clk 0:02:57]}  O-O {[%clk 0:02:44]} 6. h4 {[%clk 0:02:52]}  c5 {[%clk 0:02:36]} 7. Bxg7 {[%clk 0:02:52]}  Kxg7 {[%clk 0:02:36]} 8. O-O-O {[%clk 0:02:48]}  cxd4 {[%clk 0:02:33]} 9. Qxd4 {[%clk 0:02:48]}  Nc6 {[%clk 0:02:33]} 10. Qf4 {[%clk 0:02:11]}  e5 {[%clk 0:02:27]} 11. Qg3 {[%clk 0:01:41]}  d4 {[%clk 0:02:19]} 12. e3 {[%clk 0:01:21]}  Qa5 {[%clk 0:02:18]} 13. Nb1 {[%clk 0:01:10]}  Nb4 {[%clk 0:02:09]} 14. c3 {[%clk 0:00:52]}  Nxa2+ {[%clk 0:02:08]} 15. Kc2 {[%clk 0:00:48]}  Be6 {[%clk 0:01:48]} 16. Na3 {[%clk 0:00:13]}  Nxc3 {[%clk 0:01:43]} 17. Ra1 {[%clk 0:00:11]}  Qa4+ {[%clk 0:01:41]} 18. Kc1 {[%clk 0:00:10]}  Qd1# {[%clk 0:01:41]} 0-1


[Site "https://www.chess.com"]

[Event "Titled Tuesday Blitz February 28 Early 2023"]
[White "Kavutskiy, Konstantin"]
[Black "Lorenzo De La Riva, Lazaro"]
[WhiteFideId "2026384"]
[BlackFideId "2268809"]
[WhiteElo "2369"]
[BlackElo "2294"]
[Result "0-1"]
[Round "06"]
[TimeControl "180+2"]
[Date "2023.02.28"]
[WhiteClock "0:00:23"]
[BlackClock "0:00:51"]

1. d4 {[%clk 0:03:00]}  d5 {[%clk 0:02:58]} 2. c4 {[%clk 0:03:00]}  e6 {[%clk 0:02:58]} 3. Nf3 {[%clk 0:02:58]}  a6 {[%clk 0:02:58]} 4. Nc3 {[%clk 0:02:57]}  dxc4 {[%clk 0:02:54]} 5. e4 {[%clk 0:02:56]}  c5 {[%clk 0:02:52]} 6. d5 {[%clk 0:02:49]}  b5 {[%clk 0:02:47]} 7. Be2 {[%clk 0:02:36]}  Nf6 {[%clk 0:02:42]} 8. Bg5 {[%clk 0:02:17]}  h6 {[%clk 0:02:39]} 9. Bh4 {[%clk 0:02:06]}  g5 {[%clk 0:02:18]} 10. Bg3 {[%clk 0:02:06]}  Bg7 {[%clk 0:02:07]} 11. O-O {[%clk 0:01:46]}  O-O {[%clk 0:02:07]} 12. h4 {[%clk 0:01:44]}  g4 {[%clk 0:02:03]} 13. Ne5 {[%clk 0:01:44]}  h5 {[%clk 0:01:59]} 14. f3 {[%clk 0:01:37]}  exd5 {[%clk 0:01:58]} 15. Nxd5 {[%clk 0:01:31]}  Nxd5 {[%clk 0:01:51]} 16. Qxd5 {[%clk 0:01:27]}  Qxd5 {[%clk 0:01:49]} 17. exd5 {[%clk 0:01:28]}  Re8 {[%clk 0:01:34]} 18. Nxc4 {[%clk 0:01:01]}  bxc4 {[%clk 0:01:31]} 19. Bxc4 {[%clk 0:01:02]}  gxf3 {[%clk 0:01:21]} 20. Rxf3 {[%clk 0:01:01]}  Bg4 {[%clk 0:01:21]} 21. Rb3 {[%clk 0:01:00]}  Nd7 {[%clk 0:01:19]} 22. d6 {[%clk 0:00:54]}  Bd4+ {[%clk 0:01:16]} 23. Kh2 {[%clk 0:00:54]}  Ne5 {[%clk 0:01:16]} 24. Bd5 {[%clk 0:00:54]}  Rad8 {[%clk 0:01:14]} 25. Rb6 {[%clk 0:00:54]}  Be6 {[%clk 0:01:02]} 26. Bb7 {[%clk 0:00:32]}  Ng4+ {[%clk 0:01:02]} 27. Kh3 {[%clk 0:00:30]}  a5 {[%clk 0:00:55]} 28. Bc6 {[%clk 0:00:23]}  Ne5+ {[%clk 0:00:54]} 29. Kh2 {[%clk 0:00:23]}  Nxc6 {[%clk 0:00:54]} 30. Rxc6 {[%clk 0:00:23]}  Bd5 {[%clk 0:00:51]} 31. Ra6 {[%clk 0:00:23]}  Re2 {[%clk 0:00:51]} 0-1


[Site "https://www.chess.com"]

[Event "Titled Tuesday Blitz February 28 Early 2023"]
[White "Novikov, Evgenij"]
[Black "Antonio, Jorge Carlos"]
[WhiteFideId "4125380"]
[BlackFideId "113190"]
[WhiteElo "2242"]
[BlackElo "2247"]
[Result "1/2-1/2"]
[Round "06"]
[TimeControl "180+2"]
[Date "2023.02.28"]
[WhiteClock "0:00:07"]
[BlackClock "0:00:39"]

1. e4 {[%clk 0:03:00]}  c5 {[%clk 0:02:57]} 2. Nf3 {[%clk 0:02:56]}  e6 {[%clk 0:02:57]} 3. d4 {[%clk 0:02:56]}  cxd4 {[%clk 0:02:57]} 4. Nxd4 {[%clk 0:02:56]}  a6 {[%clk 0:02:57]} 5. c4 {[%clk 0:02:55]}  Nc6 {[%clk 0:02:56]} 6. Nxc6 {[%clk 0:02:55]}  bxc6 {[%clk 0:02:55]} 7. Bd3 {[%clk 0:02:53]}  d5 {[%clk 0:02:55]} 8. O-O {[%clk 0:02:50]}  Nf6 {[%clk 0:02:52]} 9. cxd5 {[%clk 0:02:36]}  cxd5 {[%clk 0:02:52]} 10. Nc3 {[%clk 0:02:34]}  d4 {[%clk 0:02:47]} 11. Ne2 {[%clk 0:02:32]}  e5 {[%clk 0:02:46]} 12. f4 {[%clk 0:02:28]}  Bd6 {[%clk 0:02:45]} 13. fxe5 {[%clk 0:02:25]}  Bxe5 {[%clk 0:02:44]} 14. Bf4 {[%clk 0:02:25]}  Qd6 {[%clk 0:02:38]} 15. Qa4+ {[%clk 0:02:10]}  Bd7 {[%clk 0:02:33]} 16. Bxe5 {[%clk 0:02:02]}  Qxe5 {[%clk 0:02:32]} 17. Qxd4 {[%clk 0:02:01]}  Ng4 {[%clk 0:02:29]} 18. Qxe5+ {[%clk 0:01:44]}  Nxe5 {[%clk 0:02:27]} 19. Rad1 {[%clk 0:01:40]}  Bg4 {[%clk 0:02:22]} 20. h3 {[%clk 0:01:31]}  Nxd3 {[%clk 0:02:11]} 21. hxg4 {[%clk 0:01:31]}  Nxb2 {[%clk 0:02:11]} 22. Rd4 {[%clk 0:01:29]}  O-O {[%clk 0:02:08]} 23. Rb1 {[%clk 0:01:24]}  Rab8 {[%clk 0:02:06]} 24. Nc3 {[%clk 0:01:13]}  Rfc8 {[%clk 0:02:02]} 25. Nd5 {[%clk 0:01:11]}  Kf8 {[%clk 0:01:58]} 26. Rf1 {[%clk 0:00:36]}  Nc4 {[%clk 0:01:52]} 27. Rd3 {[%clk 0:00:27]}  Ne5 {[%clk 0:01:52]} 28. Ra3 {[%clk 0:00:26]}  Rc2 {[%clk 0:01:44]} 29. Rxa6 {[%clk 0:00:23]}  f6 {[%clk 0:01:33]} 30. g5 {[%clk 0:00:23]}  Rbb2 {[%clk 0:01:28]} 31. Nf4 {[%clk 0:00:15]}  Nd3 {[%clk 0:01:12]} 32. gxf6 {[%clk 0:00:09]}  Nxf4 {[%clk 0:01:08]} 33. fxg7+ {[%clk 0:00:07]}  Kxg7 {[%clk 0:01:04]} 34. Rxf4 {[%clk 0:00:07]}  Rxg2+ {[%clk 0:00:59]} 35. Kh1 {[%clk 0:00:07]}  Rh2+ {[%clk 0:00:51]} 36. Kg1 {[%clk 0:00:07]}  Rhg2+ {[%clk 0:00:40]} 37. Kh1 {[%clk 0:00:07]}  Rh2+ {[%clk 0:00:40]} 38. Kg1 {[%clk 0:00:07]}  Rhg2+ {[%clk 0:00:39]} 1/2-1/2


[Site "https://www.chess.com"]

[Event "Titled Tuesday Blitz February 28 Early 2023"]
[White "Kuchava, Ana"]
[Black "Mirzanurov, Bulat"]
[WhiteFideId "13605348"]
[BlackFideId "4184521"]
[WhiteElo "2001"]
[BlackElo "2019"]
[Result "1/2-1/2"]
[Round "06"]
[TimeControl "180+2"]
[Date "2023.02.28"]
[WhiteClock "0:00:09"]
[BlackClock "0:00:12"]

1. d4 {[%clk 0:03:00]}  d5 {[%clk 0:02:57]} 2. Nf3 {[%clk 0:02:59]}  Nf6 {[%clk 0:02:55]} 3. c4 {[%clk 0:02:57]}  e6 {[%clk 0:02:53]} 4. Nc3 {[%clk 0:02:56]}  c6 {[%clk 0:02:52]} 5. Qb3 {[%clk 0:02:42]}  Qb6 {[%clk 0:02:50]} 6. c5 {[%clk 0:02:38]}  Qxb3 {[%clk 0:02:42]} 7. axb3 {[%clk 0:02:39]}  a6 {[%clk 0:02:32]} 8. b4 {[%clk 0:02:38]}  Bd7 {[%clk 0:02:18]} 9. Bf4 {[%clk 0:02:29]}  Be7 {[%clk 0:02:11]} 10. e3 {[%clk 0:02:27]}  a5 {[%clk 0:02:05]} 11. Rxa5 {[%clk 0:02:10]}  Na6 {[%clk 0:02:03]} 12. Bxa6 {[%clk 0:01:38]}  bxa6 {[%clk 0:02:02]} 13. O-O {[%clk 0:01:38]}  O-O {[%clk 0:01:48]} 14. Rfa1 {[%clk 0:01:28]}  Bc8 {[%clk 0:01:38]} 15. b5 {[%clk 0:01:08]}  cxb5 {[%clk 0:01:35]} 16. Nxb5 {[%clk 0:01:08]}  Nh5 {[%clk 0:01:34]} 17. Bd6 {[%clk 0:00:48]}  Bxd6 {[%clk 0:01:33]} 18. Nxd6 {[%clk 0:00:49]}  h6 {[%clk 0:01:25]} 19. Kf1 {[%clk 0:00:42]}  Bd7 {[%clk 0:01:20]} 20. Ke2 {[%clk 0:00:37]}  Rfb8 {[%clk 0:01:18]} 21. R1a2 {[%clk 0:00:36]}  Nf6 {[%clk 0:01:12]} 22. Kd3 {[%clk 0:00:34]}  Ne4 {[%clk 0:00:59]} 23. Ne5 {[%clk 0:00:27]}  Be8 {[%clk 0:00:21]} 24. Nxe4 {[%clk 0:00:24]}  Bb5+ {[%clk 0:00:20]} 25. Kc3 {[%clk 0:00:21]}  dxe4 {[%clk 0:00:20]} 26. Nc4 {[%clk 0:00:17]}  Ra7 {[%clk 0:00:20]} 27. Nd6 {[%clk 0:00:17]}  Bf1 {[%clk 0:00:19]} 28. g3 {[%clk 0:00:16]}  Rc7 {[%clk 0:00:19]} 29. h4 {[%clk 0:00:15]}  Be2 {[%clk 0:00:17]} 30. b4 {[%clk 0:00:15]}  Bd3 {[%clk 0:00:16]} 31. Nc4 {[%clk 0:00:14]}  Rcb7 {[%clk 0:00:16]} 32. Nb6 {[%clk 0:00:13]}  Rc7 {[%clk 0:00:15]} 33. Rd2 {[%clk 0:00:11]}  Rxb6 {[%clk 0:00:15]} 34. Kb3 {[%clk 0:00:08]}  Rb8 {[%clk 0:00:15]} 35. Rda2 {[%clk 0:00:07]}  Rcb7 {[%clk 0:00:16]} 36. R2a4 {[%clk 0:00:06]}  Be2 {[%clk 0:00:16]} 37. Kc3 {[%clk 0:00:06]}  Bd1 {[%clk 0:00:16]} 38. Ra1 {[%clk 0:00:04]}  Be2 {[%clk 0:00:15]} 39. R1a4 {[%clk 0:00:04]}  Bb5 {[%clk 0:00:15]} 40. Ra3 {[%clk 0:00:04]}  Bc6 {[%clk 0:00:15]} 41. Rb3 {[%clk 0:00:04]}  Bd5 {[%clk 0:00:16]} 42. Rb2 {[%clk 0:00:04]}  Ra7 {[%clk 0:00:12]} 43. Rb1 {[%clk 0:00:04]}  Rab7 {[%clk 0:00:12]} 44. Rb2 {[%clk 0:00:04]}  Ra8 {[%clk 0:00:11]} 45. Rb1 {[%clk 0:00:04]}  Bc6 {[%clk 0:00:10]} 46. Rb2 {[%clk 0:00:05]}  Bb5 {[%clk 0:00:11]} 47. Rb1 {[%clk 0:00:05]}  Rd8 {[%clk 0:00:11]} 48. Rb2 {[%clk 0:00:05]}  f6 {[%clk 0:00:11]} 49. Rd2 {[%clk 0:00:04]}  Kf7 {[%clk 0:00:10]} 50. Rd1 {[%clk 0:00:01]}  e5 {[%clk 0:00:10]} 51. d5 {[%clk 0:00:01]}  Rbd7 {[%clk 0:00:07]} 52. d6 {[%clk 0:00:01]}  Ke6 {[%clk 0:00:07]} 53. Rd2 {[%clk 0:00:02]}  Rb7 {[%clk 0:00:06]} 54. Rda2 {[%clk 0:00:03]}  f5 {[%clk 0:00:06]} 55. Rb2 {[%clk 0:00:03]}  g5 {[%clk 0:00:05]} 56. Rd2 {[%clk 0:00:03]}  f4 {[%clk 0:00:04]} 57. hxg5 {[%clk 0:00:03]}  hxg5 {[%clk 0:00:04]} 58. gxf4 {[%clk 0:00:04]}  gxf4 {[%clk 0:00:04]} 59. Rd1 {[%clk 0:00:05]}  Kf5 {[%clk 0:00:04]} 60. Rh1 {[%clk 0:00:05]}  Rg7 {[%clk 0:00:02]} 61. Rh5+ {[%clk 0:00:05]}  Kg4 {[%clk 0:00:03]} 62. Rxe5 {[%clk 0:00:04]}  Kf3 {[%clk 0:00:04]} 63. exf4 {[%clk 0:00:04]}  Kxf2 {[%clk 0:00:04]} 64. Rxe4 {[%clk 0:00:05]}  Kf3 {[%clk 0:00:04]} 65. Re7 {[%clk 0:00:05]}  Rg3 {[%clk 0:00:04]} 66. Kd4 {[%clk 0:00:04]}  Kf2 {[%clk 0:00:05]} 67. Rf7 {[%clk 0:00:04]}  Rd3+ {[%clk 0:00:05]} 68. Ke5 {[%clk 0:00:04]}  Kf3 {[%clk 0:00:06]} 69. Re7 {[%clk 0:00:04]}  Re3+ {[%clk 0:00:06]} 70. Kf6 {[%clk 0:00:05]}  Rd3 {[%clk 0:00:07]} 71. Kf7 {[%clk 0:00:05]}  Rd4 {[%clk 0:00:07]} 72. f5 {[%clk 0:00:05]}  Rf4 {[%clk 0:00:07]} 73. f6 {[%clk 0:00:06]}  Rf5 {[%clk 0:00:08]} 74. Kg6 {[%clk 0:00:06]}  Bd3 {[%clk 0:00:08]} 75. Kh6 {[%clk 0:00:05]}  Rf4 {[%clk 0:00:08]} 76. f7 {[%clk 0:00:05]}  Rf8 {[%clk 0:00:09]} 77. Kg7 {[%clk 0:00:06]}  Rd8 {[%clk 0:00:08]} 78. d7 {[%clk 0:00:05]}  Bf5 {[%clk 0:00:07]} 79. Re8 {[%clk 0:00:06]}  Rxd7 {[%clk 0:00:08]} 80. Rc8 {[%clk 0:00:03]}  Be6 {[%clk 0:00:07]} 81. Rf8 {[%clk 0:00:03]}  Rfxf7+ {[%clk 0:00:07]} 82. Rxf7+ {[%clk 0:00:03]}  Rxf7+ {[%clk 0:00:08]} 83. Kg6 {[%clk 0:00:04]}  Bc4 {[%clk 0:00:08]} 84. Rxa6 {[%clk 0:00:04]}  Rf4 {[%clk 0:00:08]} 85. Rb6 {[%clk 0:00:03]}  Re4 {[%clk 0:00:08]} 86. Kg5 {[%clk 0:00:03]}  Ke3 {[%clk 0:00:08]} 87. c6 {[%clk 0:00:04]}  Kd4 {[%clk 0:00:08]} 88. c7 {[%clk 0:00:04]}  Re8 {[%clk 0:00:08]} 89. Rb8 {[%clk 0:00:05]}  Re5+ {[%clk 0:00:08]} 90. Kf6 {[%clk 0:00:05]}  Be6 {[%clk 0:00:09]} 91. c8=Q {[%clk 0:00:04]}  Bxc8 {[%clk 0:00:09]} 92. Rxc8 {[%clk 0:00:05]}  Rb5 {[%clk 0:00:10]} 93. Rd8+ {[%clk 0:00:06]}  Kc4 {[%clk 0:00:10]} 94. Rc8+ {[%clk 0:00:06]}  Kxb4 {[%clk 0:00:10]} 95. Ke6 {[%clk 0:00:07]}  Ka4 {[%clk 0:00:11]} 96. Kd7 {[%clk 0:00:07]}  Kb4 {[%clk 0:00:11]} 97. Kc7 {[%clk 0:00:08]}  Kb3 {[%clk 0:00:12]} 98. Rb8 {[%clk 0:00:08]}  Rxb8 {[%clk 0:00:12]} 99. Kxb8 {[%clk 0:00:09]} 1/2-1/2


[Site "https://www.chess.com"]

[Event "Titled Tuesday Blitz February 28 Early 2023"]
[White "Nur-Mukhametova, Alisa"]
[Black "Jesusesmifuerza"]
[WhiteFideId "54117739"]
[WhiteElo "2007"]
[BlackElo "2015"]
[Result "1-0"]
[Round "06"]
[TimeControl "180+2"]
[Date "2023.02.28"]
[WhiteClock "0:00:42"]
[BlackClock "0:00:08"]

1. d4 {[%clk 0:03:00]}  d5 {[%clk 0:02:59]} 2. c4 {[%clk 0:02:59]}  e6 {[%clk 0:03:00]} 3. Nc3 {[%clk 0:02:59]}  a6 {[%clk 0:03:00]} 4. cxd5 {[%clk 0:02:57]}  exd5 {[%clk 0:03:01]} 5. Bf4 {[%clk 0:02:57]}  Nf6 {[%clk 0:02:55]} 6. e3 {[%clk 0:02:57]}  c5 {[%clk 0:02:43]} 7. Nf3 {[%clk 0:02:53]}  Nc6 {[%clk 0:02:31]} 8. Be2 {[%clk 0:02:51]}  Bg4 {[%clk 0:02:27]} 9. O-O {[%clk 0:02:45]}  cxd4 {[%clk 0:02:27]} 10. Nxd4 {[%clk 0:02:44]}  Bxe2 {[%clk 0:02:26]} 11. Ncxe2 {[%clk 0:02:42]}  Bd6 {[%clk 0:02:21]} 12. Bxd6 {[%clk 0:02:41]}  Qxd6 {[%clk 0:02:22]} 13. Rc1 {[%clk 0:02:35]}  O-O {[%clk 0:02:21]} 14. Nxc6 {[%clk 0:02:32]}  bxc6 {[%clk 0:02:16]} 15. Qc2 {[%clk 0:02:32]}  Rfc8 {[%clk 0:02:12]} 16. Rfd1 {[%clk 0:02:28]}  Qe7 {[%clk 0:01:54]} 17. Nf4 {[%clk 0:02:23]}  h6 {[%clk 0:01:50]} 18. Qd3 {[%clk 0:02:20]}  Qe4 {[%clk 0:01:47]} 19. Qxe4 {[%clk 0:02:12]}  Nxe4 {[%clk 0:01:48]} 20. Rc2 {[%clk 0:02:10]}  g5 {[%clk 0:01:27]} 21. Nd3 {[%clk 0:02:10]}  Rab8 {[%clk 0:01:23]} 22. Rdc1 {[%clk 0:02:04]}  a5 {[%clk 0:01:14]} 23. Rxc6 {[%clk 0:01:59]}  Rxc6 {[%clk 0:01:12]} 24. Rxc6 {[%clk 0:02:00]}  Nd2 {[%clk 0:00:59]} 25. Rc5 {[%clk 0:01:46]}  Nc4 {[%clk 0:00:46]} 26. b3 {[%clk 0:01:43]}  a4 {[%clk 0:00:35]} 27. Nc1 {[%clk 0:01:30]}  axb3 {[%clk 0:00:34]} 28. axb3 {[%clk 0:01:30]}  Nd2 {[%clk 0:00:31]} 29. Rc3 {[%clk 0:01:19]}  Ne4 {[%clk 0:00:23]} 30. Rc2 {[%clk 0:01:14]}  Kg7 {[%clk 0:00:20]} 31. f3 {[%clk 0:01:13]}  Nf6 {[%clk 0:00:19]} 32. Kf2 {[%clk 0:01:14]}  Kf8 {[%clk 0:00:19]} 33. Rb2 {[%clk 0:01:11]}  Ke7 {[%clk 0:00:19]} 34. b4 {[%clk 0:01:11]}  Kd6 {[%clk 0:00:19]} 35. Ne2 {[%clk 0:01:10]}  Nd7 {[%clk 0:00:17]} 36. Nd4 {[%clk 0:01:09]}  h5 {[%clk 0:00:16]} 37. b5 {[%clk 0:01:07]}  Nb6 {[%clk 0:00:16]} 38. Ra2 {[%clk 0:01:01]}  Nc4 {[%clk 0:00:14]} 39. Ra7 {[%clk 0:00:53]}  f6 {[%clk 0:00:13]} 40. Rf7 {[%clk 0:00:49]}  Ke5 {[%clk 0:00:08]} 41. Nc6+ {[%clk 0:00:42]} 1-0


[Site "https://www.chess.com"]

[Event "Titled Tuesday Blitz February 28 Early 2023"]
[White "Kostiukov, Alexandr"]
[Black "Shuvalova, Polina"]
[WhiteFideId "14108100"]
[BlackFideId "24171760"]
[WhiteElo "2202"]
[BlackElo "2330"]
[Result "1-0"]
[Round "06"]
[TimeControl "180+2"]
[Date "2023.02.28"]
[WhiteClock "0:00:02"]
[BlackClock "0:00:01"]

1. g3 {[%clk 0:02:56]}  d5 {[%clk 0:02:59]} 2. Bg2 {[%clk 0:02:56]}  e5 {[%clk 0:02:59]} 3. c4 {[%clk 0:02:56]}  Nf6 {[%clk 0:03:00]} 4. cxd5 {[%clk 0:02:56]}  Nxd5 {[%clk 0:03:01]} 5. Nf3 {[%clk 0:02:57]}  Nc6 {[%clk 0:03:01]} 6. O-O {[%clk 0:02:57]}  Be7 {[%clk 0:03:01]} 7. d4 {[%clk 0:02:57]}  e4 {[%clk 0:02:49]} 8. Ne5 {[%clk 0:02:57]}  Nf6 {[%clk 0:02:13]} 9. Nxc6 {[%clk 0:02:39]}  bxc6 {[%clk 0:02:13]} 10. Nc3 {[%clk 0:02:34]}  Bf5 {[%clk 0:02:12]} 11. Qa4 {[%clk 0:02:28]}  Qd7 {[%clk 0:02:09]} 12. f3 {[%clk 0:02:25]}  O-O {[%clk 0:01:25]} 13. fxe4 {[%clk 0:02:21]}  Be6 {[%clk 0:01:18]} 14. e5 {[%clk 0:02:02]}  Nd5 {[%clk 0:01:18]} 15. Nxd5 {[%clk 0:02:01]}  Bxd5 {[%clk 0:01:18]} 16. e4 {[%clk 0:01:53]}  Be6 {[%clk 0:01:17]} 17. d5 {[%clk 0:01:52]}  Bg4 {[%clk 0:01:17]} 18. Qxc6 {[%clk 0:01:40]}  Qxc6 {[%clk 0:01:17]} 19. dxc6 {[%clk 0:01:40]}  Rab8 {[%clk 0:01:18]} 20. Be3 {[%clk 0:01:28]}  Rxb2 {[%clk 0:01:11]} 21. Bxa7 {[%clk 0:01:27]}  Ra8 {[%clk 0:01:10]} 22. Rf2 {[%clk 0:01:17]}  Rb5 {[%clk 0:00:36]} 23. Bd4 {[%clk 0:01:12]}  Rb4 {[%clk 0:00:34]} 24. Be3 {[%clk 0:00:53]}  Ra3 {[%clk 0:00:33]} 25. Bc1 {[%clk 0:00:51]}  Ra6 {[%clk 0:00:28]} 26. Rc2 {[%clk 0:00:42]}  h5 {[%clk 0:00:21]} 27. Be3 {[%clk 0:00:40]}  Rba4 {[%clk 0:00:16]} 28. Rb1 {[%clk 0:00:29]}  Rxa2 {[%clk 0:00:07]} 29. Rxa2 {[%clk 0:00:28]}  Rxa2 {[%clk 0:00:08]} 30. h3 {[%clk 0:00:24]}  Be6 {[%clk 0:00:05]} 31. Rb7 {[%clk 0:00:17]}  Ra1+ {[%clk 0:00:05]} 32. Kf2 {[%clk 0:00:16]}  Ra2+ {[%clk 0:00:05]} 33. Kf3 {[%clk 0:00:16]}  g5 {[%clk 0:00:05]} 34. g4 {[%clk 0:00:14]}  hxg4+ {[%clk 0:00:03]} 35. hxg4 {[%clk 0:00:14]}  Ra3 {[%clk 0:00:04]} 36. Kf2 {[%clk 0:00:13]}  Bxg4 {[%clk 0:00:03]} 37. Rxc7 {[%clk 0:00:07]}  Bb4 {[%clk 0:00:03]} 38. Rb7 {[%clk 0:00:05]}  Ra2+ {[%clk 0:00:03]} 39. Kg3 {[%clk 0:00:05]}  Ra3 {[%clk 0:00:01]} 40. Rxb4 {[%clk 0:00:02]} 1-0


[Site "https://www.chess.com"]

[Event "Titled Tuesday Blitz February 28 Early 2023"]
[White "Bulatova, Kamaliya"]
[Black "Omariev, Maksim"]
[WhiteFideId "34111546"]
[BlackFideId "4193423"]
[WhiteElo "2039"]
[BlackElo "2472"]
[Result "1-0"]
[Round "06"]
[TimeControl "180+2"]
[Date "2023.02.28"]
[WhiteClock "0:01:22"]
[BlackClock "0:00:04"]

1. d4 {[%clk 0:02:58]}  h5 {[%clk 0:02:07]} 2. e4 {[%clk 0:02:54]}  h4 {[%clk 0:02:08]} 3. h3 {[%clk 0:02:53]}  c6 {[%clk 0:02:08]} 4. e5 {[%clk 0:02:51]}  d5 {[%clk 0:02:09]} 5. exd6 {[%clk 0:02:51]}  Qxd6 {[%clk 0:02:00]} 6. Nc3 {[%clk 0:02:48]}  Qg6 {[%clk 0:01:54]} 7. Nf3 {[%clk 0:02:44]}  Bf5 {[%clk 0:01:48]} 8. Ne5 {[%clk 0:02:37]}  Qh7 {[%clk 0:01:45]} 9. Bd3 {[%clk 0:02:14]}  Nf6 {[%clk 0:01:44]} 10. Qf3 {[%clk 0:02:09]}  Bxd3 {[%clk 0:01:42]} 11. Nxd3 {[%clk 0:02:09]}  Nbd7 {[%clk 0:01:40]} 12. d5 {[%clk 0:02:04]}  cxd5 {[%clk 0:01:35]} 13. Nxd5 {[%clk 0:02:04]}  Nxd5 {[%clk 0:01:35]} 14. Qxd5 {[%clk 0:02:04]}  e6 {[%clk 0:01:36]} 15. Qxb7 {[%clk 0:01:59]}  Rb8 {[%clk 0:01:36]} 16. Qc6 {[%clk 0:01:59]}  Be7 {[%clk 0:00:56]} 17. Bf4 {[%clk 0:01:50]}  Rd8 {[%clk 0:00:29]} 18. Bc7 {[%clk 0:01:45]}  O-O {[%clk 0:00:03]} 19. Bxd8 {[%clk 0:01:43]}  Rxd8 {[%clk 0:00:04]} 20. O-O {[%clk 0:01:42]}  Nb6 {[%clk 0:00:04]} 21. Qc7 {[%clk 0:01:34]}  Bf6 {[%clk 0:00:04]} 22. Rad1 {[%clk 0:01:30]}  Nd5 {[%clk 0:00:04]} 23. Qxa7 {[%clk 0:01:30]}  Qg6 {[%clk 0:00:04]} 24. c4 {[%clk 0:01:26]}  Ne7 {[%clk 0:00:05]} 25. Nf4 {[%clk 0:01:24]}  Rxd1 {[%clk 0:00:03]} 26. Nxg6 {[%clk 0:01:24]}  Rxf1+ {[%clk 0:00:04]} 27. Kxf1 {[%clk 0:01:24]}  Nxg6 {[%clk 0:00:05]} 28. c5 {[%clk 0:01:22]}  Kh7 {[%clk 0:00:04]} 29. c6 {[%clk 0:01:22]} 1-0


[Site "https://www.chess.com"]

[Event "Titled Tuesday Blitz February 28 Early 2023"]
[White "Vaglio Munoz, Jaime"]
[Black "Ricaurte Lopez, Juan Carlos"]
[WhiteFideId "6500145"]
[BlackFideId "3600327"]
[WhiteElo "2199"]
[BlackElo "2209"]
[Result "1-0"]
[Round "06"]
[TimeControl "180+2"]
[Date "2023.02.28"]
[WhiteClock "0:00:56"]
[BlackClock "0:00:01"]

1. d4 {[%clk 0:02:58]}  d5 {[%clk 0:02:56]} 2. c4 {[%clk 0:02:58]}  e6 {[%clk 0:02:53]} 3. Nf3 {[%clk 0:02:56]}  c5 {[%clk 0:02:52]} 4. cxd5 {[%clk 0:02:55]}  exd5 {[%clk 0:02:50]} 5. g3 {[%clk 0:02:56]}  Nc6 {[%clk 0:02:48]} 6. Bg2 {[%clk 0:02:56]}  Nf6 {[%clk 0:02:48]} 7. O-O {[%clk 0:02:55]}  Be7 {[%clk 0:02:44]} 8. a3 {[%clk 0:02:54]}  O-O {[%clk 0:02:43]} 9. dxc5 {[%clk 0:02:54]}  Bxc5 {[%clk 0:02:43]} 10. b4 {[%clk 0:02:54]}  Bb6 {[%clk 0:02:42]} 11. Bb2 {[%clk 0:02:54]}  Re8 {[%clk 0:02:36]} 12. Nc3 {[%clk 0:02:53]}  Bg4 {[%clk 0:02:32]} 13. h3 {[%clk 0:02:51]}  Bh5 {[%clk 0:02:30]} 14. Nb5 {[%clk 0:02:50]}  Ne4 {[%clk 0:02:26]} 15. e3 {[%clk 0:02:41]}  a5 {[%clk 0:02:16]} 16. g4 {[%clk 0:02:34]}  Bg6 {[%clk 0:02:14]} 17. bxa5 {[%clk 0:02:32]}  Rxa5 {[%clk 0:02:12]} 18. a4 {[%clk 0:02:31]}  h5 {[%clk 0:01:42]} 19. Nfd4 {[%clk 0:02:25]}  hxg4 {[%clk 0:01:36]} 20. Qxg4 {[%clk 0:02:24]}  Ne5 {[%clk 0:01:25]} 21. Qd1 {[%clk 0:02:17]}  Nc4 {[%clk 0:01:23]} 22. Bc3 {[%clk 0:02:12]}  Ra8 {[%clk 0:01:10]} 23. Qg4 {[%clk 0:01:43]}  Ne5 {[%clk 0:00:57]} 24. Qd1 {[%clk 0:01:41]}  Qd7 {[%clk 0:00:50]} 25. Bb4 {[%clk 0:01:33]}  Ba5 {[%clk 0:00:43]} 26. Bxa5 {[%clk 0:01:28]}  Rxa5 {[%clk 0:00:43]} 27. Rc1 {[%clk 0:01:21]}  Nc4 {[%clk 0:00:33]} 28. Nc3 {[%clk 0:01:15]}  Nxc3 {[%clk 0:00:25]} 29. Rxc3 {[%clk 0:01:16]}  Rea8 {[%clk 0:00:19]} 30. Nb5 {[%clk 0:01:11]}  Nb6 {[%clk 0:00:13]} 31. Rc7 {[%clk 0:01:08]}  Qf5 {[%clk 0:00:11]} 32. Nd4 {[%clk 0:01:06]}  Qe5 {[%clk 0:00:07]} 33. Rxb7 {[%clk 0:01:05]}  Nxa4 {[%clk 0:00:07]} 34. Nc6 {[%clk 0:01:05]}  Qg5 {[%clk 0:00:02]} 35. Nxa5 {[%clk 0:01:04]}  Rxa5 {[%clk 0:00:02]} 36. Qg4 {[%clk 0:01:02]}  Qe5 {[%clk 0:00:01]} 37. Rd7 {[%clk 0:00:56]} 1-0


[Site "https://www.chess.com"]